Cogmind - Beta 16 @@@ ROGUE MODE // 2025.12.01 @ 10:22:56 Player: Lazz Result: Destroyed by Y-45 Defender with Beam Rifle Performance ------------- Evolutions (2) 1000 Regions Visited (6) 1200 Robots Destroyed (57) 285 Value Destroyed (2108) 2108 Prototype IDs (4) 80 Alien Tech Used (0) 0 Bonus (492) 492 TOTAL SCORE: 5165 Bonus ------- High Alert Combat Kills 81 Follower Combat Kills 211 Entered Garrisons 200 Cogmind --------- Core Integrity 0/550 Matter 142/300 Energy 100/100 System Corruption 0% Temperature Cool (9) Movement Walking (330) Ox3 Location -8/Materials Parts ------- > --- POWER (1) -------- (None) > --- PROPULSION (3) --- Aluminum Leg Aluminum Leg Aluminum Leg > --- UTILITY (4) ------ Huge Storage Unit Advanced Weight Redist. System Improved Terrain Scanner Improved Utility Shielding > --- WEAPON (3) ------- Flak Cannon Flak Cannon Mining Laser > --- INVENTORY (25) --- Reinforced Ion Engine Light Nuclear Core Light Treads Improved Heat Sink High-capacity Matter Pod (0) Compact Matter Pod (150) Improved Signal Interpreter Target Analyzer Light Armor Plating High-powered Tractor Beam High-powered Tractor Beam High-powered Tractor Beam Light Assault Rifle High-powered Shotgun Peak State ------------ > --- POWER ------------ Reinforced Ion Engine > --- PROPULSION ------- Light Treads Light Treads Compact Wheel > --- UTILITY ---------- Huge Storage Unit Improved Terrain Scanner Seismic Detector High-powered Tractor Beam > --- WEAPON ----------- Assault Rifle Gauss Rifle Flak Cannon > --- INVENTORY -------- Reinforced Ion Engine Light Nuclear Core Improved Heat Sink High-capacity Matter Pod Compact Matter Pod Improved Signal Interpreter Power Shielding Improved Utility Shielding High-powered Tractor Beam High-powered Tractor Beam High-powered Tractor Beam Light Assault Rifle Flak Cannon Flak Cannon Flak Cannon Flak Cannon Flak Cannon Flak Cannon Flak Cannon Mining Laser [Rating: 26] Favorites ----------- Power Reinforced Ion Engine Engine Reinforced Ion Engine Propulsion Light Treads Treads Light Treads Leg Aluminum Leg Wheel Compact Wheel Utility Huge Storage Unit Device Seismic Detector Storage Huge Storage Unit Processor Improved Targeting Computer Protection Power Shielding Weapon Flak Cannon Energy Gun Medium Laser Ballistic Gun Assault Rifle Ballistic Cannon Flak Cannon Special Weapon Mining Laser Build | -11 -10 -9 -9 -8 -8 -8 ------- Run | Yrd Mat Mat Min Mat Gar Mat Slots Evolved 4 | . . 2 . 2 . . Power . | . . . . . . . Propulsion 1 | . . . . 1 . . Utility 2 | . . 1 . 1 . . Weapon 1 | . . 1 . . . . Parts Attached 40 | 9 2 5 . 6 13 5 Power 2 | 1 1 . . . . . Engine 2 | 1 1 . . . . . Core . | . . . . . . . Reactor . | . . . . . . . Propulsion 13 | 4 . 1 . 2 3 3 Treads 4 | . . 1 . 1 2 . Leg 4 | . . . . . 1 3 Wheel 5 | 4 . . . 1 . . Hover . | . . . . . . . Flight . | . . . . . . . Utility 9 | 2 1 1 . 2 1 2 Device 4 | 1 . 1 . 1 . 1 Storage 2 | 1 1 . . . . . Processor 1 | . . . . 1 . . Hackware . | . . . . . . . Protection 2 | . . . . . 1 1 Artifact . | . . . . . . . Weapon 16 | 2 . 3 . 2 9 . Energy Gun 2 | 1 . . . . 1 . Energy Cannon . | . . . . . . . Ballistic Gun 5 | 1 . 3 . 1 . . Ballistic Cannon 8 | . . . . 1 7 . Launcher . | . . . . . . . Special Weapon 1 | . . . . . 1 . Impact Weapon . | . . . . . . . Slashing Weapon . | . . . . . . . Piercing Weapon . | . . . . . . . Special Melee Weapon . | . . . . . . . Unidentified Prototypes . | . . . . . . . Parts Lost 23 | . . 2 . 4 17 . Power 1 | . . . . . 1 . Propulsion 9 | . . 2 . 2 5 . Utility 3 | . . . . 1 2 . Weapon 10 | . . . . 1 9 . Highest Loss Streak 12 | . . 2 . 4 12 . To Critical Strikes . | . . . . . . . Average Backups 14 | 4 8 6 6 16 18 13 Power 1 | . 1 1 1 1 2 2 Propulsion 1 | 2 4 3 2 . . . Utility 7 | . 2 2 2 5 10 9 Weapon 4 | 1 1 . 1 8 5 1 Tool/Special . | . . . . . . . Unused Backups 14 | . 1 . . . 1 12 Power 3 | . 1 . . . . 2 Propulsion 1 | . . . . . 1 . Utility 9 | . . . . . . 9 Weapon 1 | . . . . . . 1 Tool/Special . | . . . . . . . Average Slot Usage (%) 82 | . 100 95 100 96 71 81 Engine 6 | . 14 11 11 9 5 . Treads 9 | . . . . 10 14 6 Leg 2 | . . . . . 1 19 Wheel 8 | . 28 21 22 15 . . Device 14 | . 14 20 22 21 10 13 Storage 9 | . 14 11 11 9 9 9 Protection 3 | . . . . . 5 6 Energy Gun 2 | . 14 3 . . 2 . Ballistic Gun 10 | . 14 27 33 19 3 . Ballistic Cannon 11 | . . . . 7 17 18 Special Weapon 1 | . . . . . . 9 Peak Build Rating 26 | 9 11 13 13 26 26 23 Average Rating 17 | 4 10 11 12 21 19 20 On Entrance 11 | . 9 11 12 13 26 12 Avg Prop Armor Cover (%) 10 | . . . . 15 8 8 Naked Turns . | . . . . . . . Heaviest Build 109 | 13 95 97 97 105 109 96 Greatest Support 60 | 32 20 32 32 42 60 30 Greatest Overweight (x) 32 | . 4 4 3 6 32 9 Average Overweight (x) 3 | . 1 3 3 4 3 3 Largest Inventory Capacity 25 | 8 25 25 25 25 25 25 Average Capacity 23 | 7 15 25 25 25 25 25 Most Carried 22 | 8 9 9 9 20 22 16 Average Carried 14 | 4 8 6 6 16 18 13 Final Capacity 25 | 8 25 25 25 25 25 25 Final Carried 20 | 7 9 6 9 20 16 14 Class Distribution -------------------- 31% | Mutant 20% | Skirmisher 17% | Tank 10% | Scavenger-Skirmisher 10% | Gunner 10% | Scavenger-Tank Dominant Class ---------------- Mutant | -10/Materials Scavenger-Skirmisher | -9/Materials Skirmisher | -9/Mines Skirmisher | -8/Materials Mutant | -8/Garrison Scavenger-Skirmisher | -8/Materials Resources | -11 -10 -9 -9 -8 -8 -8 ----------- Run | Yrd Mat Mat Min Mat Gar Mat Matter Collected 1737 | 283 114 45 92 354 604 245 Remotely 587 | . . . . 88 499 . Salvage Created 1682 | 41 375 62 32 451 676 45 Parts 102 | 6 23 4 5 21 40 3 Haulers Intercepted 1 | . . . . 1 . . Recyclers Shooed 3 | . . . . 2 . 1 Parts Field Recycled . | . . . . . . . Retrieved Matter . | . . . . . . . Parts Self-Destructed . | . . . . . . . Prevented . | . . . . . . . Parts Restored . | . . . . . . . Kills | -11 -10 -9 -9 -8 -8 -8 ------- Run | Yrd Mat Mat Min Mat Gar Mat Combat Hostiles Destroyed 51 | . 9 4 2 11 23 2 Guns 25 | . 9 4 2 4 6 . Cannons 25 | . . . . 7 16 2 AOE 1 | . . . . . 1 . Classes Destroyed 10 | 1 3 . . 4 1 1 Builder 1 | . . . . 1 . . Tunneler 2 | 2 . . . . . . Hauler 1 | . . . . 1 . . Recycler 1 | . 1 . . . . . Swarmer 18 | . 3 4 2 4 5 . Grunt 22 | . 6 . . 4 11 1 Duelist 1 | . . . . . . 1 Sentry 8 | . . . . 3 5 . Hunter 1 | . . . . 1 . . Programmer 2 | . . . . . 2 . Best Kill Streak 7 | 2 7 3 2 7 6 2 Combat Bots Only 6 | . 4 3 2 6 6 2 Max Kills in Single Turn 2 | 1 1 2 2 2 1 1 Gunslinging 1 | . . 1 1 . . . Exploded 1 | . . . . . 1 . Melee . | . . . . . . . Uniques/NPCs Destroyed . | . . . . . . . Combat | -11 -10 -9 -9 -8 -8 -8 -------- Run | Yrd Mat Mat Min Mat Gar Mat Hostile Shots Fired 334 | . 43 37 14 74 156 10 Missed 84 | . 8 15 5 17 35 4 Hits 250 | . 35 22 9 57 121 6 Melee 2 | . . . . . . 2 Projectile 248 | . 35 22 9 57 121 4 Critical Strikes 12 | . . . . 1 10 1 Damage Taken 3611 | . 370 188 73 765 2088 127 Core 733 | . 104 37 32 149 397 14 Absorbed by Shields . | . . . . . . . Redirected to Shielding 20 | . . . . . 20 . Core Remaining (%) 80 | 100 58 . 82 . . . Volleys Fired 142 | 3 26 9 2 26 68 8 Largest 3 | 2 2 3 3 3 3 2 Hottest 137 | 70 70 60 60 85 137 74 Shots Fired 343 | 6 52 27 6 75 162 15 Gun 177 | 6 52 27 6 51 35 . Cannon 153 | . . . . 24 114 15 Launcher . | . . . . . . . Special 13 | . . . . . 13 . Kinetic 285 | 3 26 27 6 75 133 15 Thermal 42 | 3 26 . . . 13 . Explosive . | . . . . . . . Electromagnetic 16 | . . . . . 16 . Robot Hit Streak 19 | 3 11 3 3 10 19 6 Robot Miss Streak 8 | 1 3 6 1 7 8 3 Penetration Max 1 | . . . . 1 . . Secondary Targets 4 | . 1 1 2 . . . Max Gunslinging Chain 2 | . 1 1 2 . . . Shots Hit Robots 238 | 4 34 9 4 51 125 11 Core Hits 212 | 2 17 5 3 45 125 15 Critical Kills . | . . . . . . . Critical Parts Destroyed . | . . . . . . . Critical Strikes 2 | . 2 . . . . . Burn 2 | . 2 . . . . . Melee Attacks . | . . . . . . . Impact . | . . . . . . . Slashing . | . . . . . . . Piercing . | . . . . . . . Sneak Attacks . | . . . . . . . Combat Hostiles . | . . . . . . . Follow-up Attacks . | . . . . . . . Damage Inflicted 4569 | 58 429 105 53 924 2807 193 Guns 1576 | 58 429 105 53 488 443 . Cannons 2552 | . . . . 436 1923 193 Explosions 129 | . . . . . 129 . Melee . | . . . . . . . Ramming . | . . . . . . . Kinetic 3680 | 33 190 105 53 924 2182 193 Thermal 705 | 25 239 . . . 441 . Explosive . | . . . . . . . Electromagnetic 184 | . . . . . 184 . Impact . | . . . . . . . Slashing . | . . . . . . . Piercing . | . . . . . . . Highest Corruption 2 | . . 2 2 . . . Average Corruption 2 | . . 2 2 . . . Corruption Purged . | . . . . . . . Corruption Blocked . | . . . . . . . Effects 1 | . . . 1 . . . Energy Discharges 1 | . . . 1 . . . Overload Shots . | . . . . . . . Overflow Damage . | . . . . . . . Projectiles . | . . . . . . . Explosions . | . . . . . . . Melee . | . . . . . . . Knockbacks 34 | . . . . 7 20 7 Impact . | . . . . . . . Kinetic 33 | . . . . 7 20 6 Secondary 1 | . . . . . . 1 Self-Inflicted Damage . | . . . . . . . Shots . | . . . . . . . Rammed . | . . . . . . . Targets Rammed . | . . . . . . . Kicked . | . . . . . . . Crushed . | . . . . . . . Highest Temperature 386 | 27 225 15 6 95 386 2 Average Temperature 85 | 14 81 5 3 29 125 2 Received Heat Transfer 1146 | . 180 . . 225 705 36 Effects 2 | . . . . . 2 . Shutdowns 1 | . . . . . 1 . Energy Bleed 1 | . . . . . 1 . Siege Activations . | . . . . . . . Martial Activations . | . . . . . . . Shielding Activations . | . . . . . . . Robots Disrupted . | . . . . . . . Combat Hostiles . | . . . . . . . Robots Corrupted . | . . . . . . . Combat Hostiles . | . . . . . . . Parts Fried . | . . . . . . . Impact Corruptions . | . . . . . . . Robots Melted . | . . . . . . . Combat Hostiles . | . . . . . . . Parts Melted 2 | . . . . 2 . . Heat Transferred 1725 | 74 851 . . . 800 . Parts Sabotaged . | . . . . . . . Parts Stolen . | . . . . . . . Parts Stripped . | . . . . . . . Power Chain Reactions 1 | . . . . . 1 . Alert | -11 -10 -9 -9 -8 -8 -8 ------- Run | Yrd Mat Mat Min Mat Gar Mat Maximum Alert Level 2 | . . . . 1 2 1 Low Security (%) 40 | 100 100 100 100 69 9 . Level 1 31 | . . . . 30 35 100 Level 2 27 | . . . . . 55 . Level 3 . | . . . . . . . Level 4 . | . . . . . . . Level 5 . | . . . . . . . High Security . | . . . . . . . Max Security . | . . . . . . . Peak Influence 568 | 10 148 65 104 348 568 276 Initial 276 | . . 57 13 24 50 276 Average 241 | . 75 37 48 148 365 245 Influence Increases 1775 | 10 228 121 104 554 708 50 Destroy 0b10 Robot/C 1200 | . 180 80 80 360 460 40 Destroy 0b10 Robot/NC 35 | 10 5 . . 10 10 . Destroy Leader 172 | . 30 10 10 102 10 10 Allied During Kill 79 | . . . 14 57 8 . Successful Hack 39 | . 13 16 . 10 . . Disable Machine 15 | . . . . 15 . . Anti-Garrison Action 200 | . . . . . 200 . Destroy Structure 5 | . . . . . 5 . Lose Combat Pursuer 30 | . . 15 . . 15 . Influence Decreases 1559 | 10 90 224 75 540 218 402 Entered New Map 463 | . . 81 22 40 28 292 Time Decay 493 | 10 90 70 53 160 . 110 Lost Part 230 | . . 20 . 40 170 . Lost Ally 20 | . . . . . 20 . Purge Threat 353 | . . 53 . 300 . . Squads Dispatched 9 | . 3 2 . 4 . . Investigation 3 | . 2 . . 1 . . Extermination . | . . . . . . . Reinforcement 3 | . 1 2 . . . . Assault . | . . . . . . . Garrison 3 | . . . . 3 . . Intercept . | . . . . . . . Searches Triggered . | . . . . . . . Construction Impeded . | . . . . . . . Haulers Reinforced . | . . . . . . . Active Scanning Responses . | . . . . . . . Cargo Convoy Interrupts . | . . . . . . . Stealth | -11 -10 -9 -9 -8 -8 -8 --------- Run | Yrd Mat Mat Min Mat Gar Mat Distress Signals 1 | . . . . 1 . . Communications Jammed . | . . . . . . . Distress Signals . | . . . . . . . Times Spotted 72 | . 11 6 4 21 27 3 Peak Tracking Total 8 | . 4 3 4 8 7 2 Tactical Retreats 2 | . . 1 . . 1 . Traps | -11 -10 -9 -9 -8 -8 -8 ------- Run | Yrd Mat Mat Min Mat Gar Mat Traps Triggered 4 | . 1 1 . 1 1 . Indirectly . | . . . . . . . Trap Hack Attempts . | . . . . . . . Triggered . | . . . . . . . Disarmed . | . . . . . . . Reprogrammed . | . . . . . . . Reused . | . . . . . . . Traps Extracted . | . . . . . . . Installed . | . . . . . . . Triggered . | . . . . . . . Machines | -11 -10 -9 -9 -8 -8 -8 ---------- Run | Yrd Mat Mat Min Mat Gar Mat Machines Disabled 3 | . . . . 1 2 . Max in Single Turn 1 | . . . . 1 1 . Garrison Relay 2 | . . . . . 2 . Machines Repaired . | . . . . . . . Machines Dismantled . | . . . . . . . Machines Sabotaged . | . . . . . . . Overloaded Fab Kills . | . . . . . . . Hacking | -11 -10 -9 -9 -8 -8 -8 --------- Run | Yrd Mat Mat Min Mat Gar Mat Machines Accessed 11 | . 2 4 . 4 1 . Terminals 9 | . 2 3 . 3 1 . Fabricators . | . . . . . . . Repair Stations . | . . . . . . . Recycling Units . | . . . . . . . Scanalyzers 1 | . . 1 . . . . Garrison Access 1 | . . . . 1 . . Total Hacks 37 | . 5 12 . 17 3 . Successful 18 | . 3 6 . 9 . . Failed 18 | . 2 5 . 8 3 . Catastrophic 2 | . 1 . . . 1 . Database Lockouts 1 | . . 1 . . . . Manual 14 | . 2 2 . 10 . . Terminals 32 | . 5 8 . 16 3 . Fabricators . | . . . . . . . Repair Stations . | . . . . . . . Recycling Units . | . . . . . . . Scanalyzers 4 | . . 4 . . . . Garrison Access 1 | . . . . 1 . . Terminal Hacks 12 | . 3 3 . 6 . . Prototype ID Bank 2 | . 1 . . 1 . . Level Access Points 1 | . 1 . . . . . Emergency Access Points 1 | . . . . 1 . . Terminal Index 2 | . . 1 . 1 . . Unreport Threat 3 | . . 1 . 2 . . Zone Layout 3 | . 1 1 . 1 . . Fabricator Hacks . | . . . . . . . Repair Station Hacks . | . . . . . . . Recycling Unit Hacks . | . . . . . . . Scanalyzer 2 | . . 2 . . . . Retrieve Study 2 | . . 2 . . . . Garrison Access Hacks 1 | . . . . 1 . . Unlock Access 1 | . . . . 1 . . Unauthorized Hacks 3 | . . 1 . 2 . . Terminals 3 | . . 1 . 2 . . Botnet 3 | . . 1 . 2 . . Fabricators . | . . . . . . . Repair Stations . | . . . . . . . Recycling Units . | . . . . . . . Scanalyzers . | . . . . . . . Garrison Access . | . . . . . . . Data Cores Recovered . | . . . . . . . Used . | . . . . . . . Hacking Detections 9 | . 1 4 . 3 1 . Full Trace Events 1 | . 1 . . . . . Feedback Events . | . . . . . . . Feedback Blocked . | . . . . . . . Robot Schematics Acquired . | . . . . . . . Robots Built . | . . . . . . . Authchips . | . . . . . . . Time . | . . . . . . . Total Robot Build Rating . | . . . . . . . Part Schematics Acquired . | . . . . . . . Parts Built . | . . . . . . . Authchips . | . . . . . . . Time . | . . . . . . . Total Part Build Rating . | . . . . . . . Part Studies Acquired 2 | . . 2 . . . . Parts Repaired . | . . . . . . . Time . | . . . . . . . Parts Recycled . | . . . . . . . Recycled Matter . | . . . . . . . Retrieved Matter . | . . . . . . . Retrieved Components . | . . . . . . . Parts Scanalyzed . | . . . . . . . Part Schematics Acquired . | . . . . . . . Parts Damaged . | . . . . . . . Bothacking | -11 -10 -9 -9 -8 -8 -8 ------------ Run | Yrd Mat Mat Min Mat Gar Mat Used RIF Installer . | . . . . . . . Robots Hacked . | . . . . . . . Non-combat . | . . . . . . . Combat . | . . . . . . . Robot Hacks Applied . | . . . . . . . Relay Couplers Released 6 | . . . . . 6 . Machine Destruction 6 | . . . . . 6 . Fabnet Peak Effective % . | . . . . . . . Robots Rewired . | . . . . . . . Allies Hacked . | . . . . . . . Hacks Repelled . | . . . . . . . Allies | -11 -10 -9 -9 -8 -8 -8 -------- Run | Yrd Mat Mat Min Mat Gar Mat Total Allies 3 | . . . 3 . . . Largest Group 3 | . . . 3 3 2 . Highest-Rated Group 40 | . . . 40 40 32 . Highest-Rated Ally 16 | . . . 16 16 16 . Initial Warlord ECA Mod 4 | . . . . . . 4 Total Orders . | . . . . . . . Ally Attacks 65 | . . . 4 58 3 . Total Damage 672 | . . . 31 609 32 . Kills 9 | . . . 2 7 . . Allies Corrupted . | . . . . . . . Allies Melted . | . . . . . . . Intel | -11 -10 -9 -9 -8 -8 -8 ------- Run | Yrd Mat Mat Min Mat Gar Mat Active Infowar (turns) 1753 | 12 197 216 124 327 709 168 Terrain 1062 | 12 197 216 124 327 18 168 Seismic 1358 | . . 198 124 327 709 . Robot Analysis Total . | . . . . . . . Derelict Logs Recovered . | . . . . . . . Drone Launches . | . . . . . . . Drone Recoveries . | . . . . . . . Exploration | -11 -10 -9 -9 -8 -8 -8 ------------- Run | Yrd Mat Mat Min Mat Gar Mat Turns Passed 2386 | 84 197 216 124 327 1213 225 Spaces Moved 839 | 57 106 129 86 136 277 48 Core 13 | 8 . . . . 5 . Treads 227 | . . . . . 227 . Legs 48 | . . . . . . 48 Wheels 551 | 49 106 129 86 136 45 . Hover . | . . . . . . . Flight . | . . . . . . . Fastest Speed 50 | 50 80 130 135 113 180 330 Average Speed 209 | 89 102 132 135 154 330 382 Slowest Speed 1650 | 100 140 140 135 180 1650 750 Overloaded Moves . | . . . . . . . Propulsion Burnouts . | . . . . . . . Robots Hopped . | . . . . . . . Potential Cave-ins . | . . . . . . . Cave-ins Triggered . | . . . . . . . Exploration Rate (%) 17 | 4 26 18 18 15 32 9 Regions Visited 6 Branch Regions 1 Pre-discovered Areas . | . . . . . . . Known Exits Taken 2 | . 1 . . 1 . . Unknown Exits Taken 3 | 1 . 1 1 . . . Scrap Searched 1 | . . . 1 . . . Spaces Dug . | . . . . . . . Terrain Destroyed 5 | . . . . . 5 . Melee . | . . . . . . . Projectile . | . . . . . . . AOE 5 | . . . . . 5 . Terrain Rammed . | . . . . . . . Walls Destroyed . | . . . . . . . Machines Disabled . | . . . . . . . Actions | -11 -10 -9 -9 -8 -8 -8 --------- Run | Yrd Mat Mat Min Mat Gar Mat Total 1161 | 82 144 156 90 195 420 74 Wait 79 | . 5 7 . 9 53 5 Move 834 | 56 105 128 85 136 276 48 Hop . | . . . . . . . Pick Up 54 | 14 3 3 3 17 9 5 Fast Attach . | . . . . . . . Attach 37 | 7 . 6 . 6 12 6 Detach . | . . . . . . . Swap 8 | 2 2 1 . 1 1 1 Drop 7 | . 3 2 . . 1 1 Fire 142 | 3 26 9 2 26 68 8 Melee . | . . . . . . . Ram . | . . . . . . . Kick . | . . . . . . . Crush . | . . . . . . . Escape Stasis . | . . . . . . . Rewire . | . . . . . . . Trap . | . . . . . . . Miscellaneous . | . . . . . . . Route ------- -11/Scrapyard -10/Materials (discovered 3 exits: *Mat x3) -9/Materials -9/Mines -8/Materials -8/Garrison -8/Materials History --------- Turn | Location | Event 29 | -11/Scrapyard | Discovered new exit (range 15) 85 | -11/Scrapyard | Entered Materials 94 | -10/Materials | Identified exit to Materials 282 | -10/Materials | Entered another Materials area 282 | -9/Materials | Evolved 2 slots: Utility x1, Weapon x1 289 | -9/Materials | Central database locked down 469 | -9/Materials | Discovered new exit (range 16) 498 | -9/Materials | Entered Mines 512 | -9/Mines | Assisted by bots powering up and referring to "LRC-V3" 595 | -9/Mines | Discovered new exit (range 15) 622 | -9/Mines | Entered Materials 622 | -8/Materials | Accompanied by 3 allies 622 | -8/Materials | Evolved 2 slots: Propulsion x1, Utility x1 715 | -8/Materials | Garrison activated, responded to threat 777 | -8/Materials | Lost 4 parts (2n1u1w) 940 | -8/Materials | Identified exit to Garrison 949 | -8/Materials | Entered Garrison 949 | -8/Garrison | Accompanied by 2 allies 1015 | -8/Garrison | Triggered checkpoint 1019 | -8/Garrison | Garrison Relay disabled 1055 | -8/Garrison | P-60 Hacker assimilated allied Trooper 2b 1063 | -8/Garrison | Garrison Relay disabled 1274 | -8/Garrison | Build established: Tank 1365 | -8/Garrison | Lost 3 parts (1n2w) 1610 | -8/Garrison | Spotted B-75 Beast 1624 | -8/Garrison | Core integrity fell below 50% 1675 | -8/Garrison | Core integrity fell below 20% 1715 | -8/Garrison | Lost 12 parts (1p3n2u6w) 1845 | -8/Garrison | Discovered new exit (range 13) 1875 | -8/Garrison | Triggered checkpoint 1935 | -8/Garrison | Build established: Mutant 2162 | -8/Garrison | Entered Materials 2387 | -8/Materials | Destroyed by Y-45 Defender with Beam Rifle Last Messages --------------- 02292_ R-06 Scavenger knocked back. 02292_ G-47 Trooper knocked back. 02295_ G-47 Trooper destroyed. 02295_ K-01 Serf collects debris. 02298_ Acquired Hcp. Matter Pod. 02298_ K-01 Serf collects debris. 02306_ Acquired Aluminum Leg. 02308_ K-01 Serf collects debris. 02315_ Acquired Aluminum Leg. 02318_ K-01 Serf collects debris. 02322_ Acquired 24 matter. 02325_ Acquired 21 matter. 02326_ R-06 Scavenger collects Imp. Heat Sink. 02329_ K-01 Serf collects debris. 02330_ R-06 Scavenger collects Katana. 02342_ K-01 Serf collects debris. 02355_ R-06 Scavenger knocked back. 02355_ K-01 Serf collects debris. 02379_ K-01 Serf cleans the Processing Tank. Map ----- +----------------------------------------------------+ | ??????????????????????????????????? | | ??????????????????????????????????? | | ??????????????????????????????????? | | ??????????????????????????????????? | | ??????????????????????????????????? | | ??????????????????????????????????? | | ??????????????????????????????????? | | ??????????????????????????????????? | | ??????????????????????????????????? | | ??????????????????????????????????? | | ??????????????????????????????????? | | ??????????????????????????????????? | | ??????????????????????????????????? | | ??????????????????????????????????? | | ??????????????????????????????????? | | ?????????? ???????????????????????? | | ??????????????????????????????????? | | ??????????????????????????????????? | | ???????????????????#??????????????? | | ??#???????????????????????????????? | | ??????????????????????????????????? | | ???##########+############????????? | | ??? # ???????? | | ???"" """ # ???????? | | ??"R """ #k ???????? | | ???"" """@/ #?????????????? | | ?# """ # #?#???????????? | | ?? """Y# [[! #?????????????? | | ??? # [!! ###? ?????????? | | ??? # [!! #???????????? | | ?#?### ##### +???????????? | | ??##?##????# #? ?????????? | | ??????#??#?# ########???????????? | | #??#??#??#?# #?#?#????? ????????? | | ???????????# ##???##??###???????? | | ?########### ####### #??????? | | ?# # #??????? | | ?# # " ???????? | | ?# # #??????? | | ?# + ####### / #??????? | | ?# # #?#?????? ##??????? | | ?# # ##?#???#???#???????? | | ?# # ##?????????????????? | | ?# # ###??? ?? ?????????? | | ?########### #?#????????????????? | | ????# # #??#? ?? ??????????? | | ???## + #??????????????????? | | ????# # ##?????????????????? | | ?#??# # #??????????????????? | | ?#??# # #??#???????????????? | +----------------------------------------------------+ Best States ------------- Heat Dissipation 31 Energy Generation 12 Energy Capacity 265 Matter Stores 300 Matter Capacity 300 Sight Range 16 Terrain Scan Range 16 Terrain Scan Density 10 Additional Mass Support 9 Power Shielding 33 Utility Shielding 66 Evasion (%) 44 Targeting Accuracy 6 Recoil Reduction 3 Item Schematics ----------------- None Robot Schematics ------------------ None Fabricated ------------ Nothing Repaired ---------- Nothing Studied --------- Wheel | -9/Materials | Hacked Com. Wheel | -9/Materials | Hacked Alien Tech Used ----------------- None Achievements -------------- None Challenges ------------ None Game ------ Seed SalvagingDimensionalLegs Manual? 0 Play Time 00:22:23 Cumulative 103.6 hours Start 2025.12.01 @ 09:55:03 End 2025.12.01 @ 10:22:56 Sessions 1 Manual Loads 0 Difficulty Rogue Special Mode None Game No. 150 Rogue 150 Adventurer 0 Explorer 0 Win Type - Total 1 Types 1/0/0/0/0/0/0/0/0/0 Lore% 58 Gallery% 54 Achievement% 41 Wizard Run 0 Options --------- Layout 2 ASCII 0 Keyboard 0 Movement Mouse Keybinds 0 Fullscreen 1 Font 16/SmallcapsGlow Map View 25x24 Zoom Use 99% Tactical HUD 1 Map Filters NONE Filters NONE Steam SD RUN: 27c0e8e0-4aee-4f52-8e4b-3499890e1c5c